[Event "Early-Titled-Tuesday-Blitz-February-20-2024"]
[Site "Chess.com"]
[Date "2024.02.20"]
[Round "8"]
[White "Bauman_Guy"]
[Black "FARIZA2018"]
[Result "1-0"]
[WhiteElo "2922"]
[BlackElo "2601"]
[TimeControl "180+1"]
[EndTime "9:28:40 PST"]
[Termination "Bauman_Guy won by resignation"]

1. e4 {[%clk 0:03:00.9]} 1... e5 {[%clk 0:02:59.9]} 2. Nf3 {[%clk 0:03:01.1]}
2... Nf6 {[%clk 0:02:58.1]} 3. Nxe5 {[%clk 0:03:00.7]} 3... d6 {[%clk
0:02:58.3]} 4. Nf3 {[%clk 0:03:00.5]} 4... Nxe4 {[%clk 0:02:58.7]} 5. d4 {[%clk
0:03:01.2]} 5... d5 {[%clk 0:02:58.8]} 6. Bd3 {[%clk 0:03:01.8]} 6... Be7 {[%clk
0:02:58.6]} 7. O-O {[%clk 0:03:01.5]} 7... Nc6 {[%clk 0:02:59]} 8. Nbd2 {[%clk
0:03:01]} 8... Nd6 {[%clk 0:02:57.2]} 9. Re1 {[%clk 0:02:59.8]} 9... Bf5 {[%clk
0:02:55.5]} 10. Nf1 {[%clk 0:02:59.4]} 10... Bxd3 {[%clk 0:02:55]} 11. Qxd3
{[%clk 0:02:58.3]} 11... O-O {[%clk 0:02:54.6]} 12. Bf4 {[%clk 0:02:58.9]} 12...
Bf6 {[%clk 0:02:53.4]} 13. c3 {[%clk 0:02:58.5]} 13... Qd7 {[%clk 0:02:50.3]}
14. Ng3 {[%clk 0:02:58.5]} 14... Rae8 {[%clk 0:02:48.3]} 15. Nh5 {[%clk
0:02:58.2]} 15... Ne4 {[%clk 0:02:38]} 16. Nd2 {[%clk 0:02:53.7]} 16... Qf5
{[%clk 0:02:33.9]} 17. Nxe4 {[%clk 0:02:34.5]} 17... dxe4 {[%clk 0:02:31.9]} 18.
Nxf6+ {[%clk 0:02:34.8]} 18... gxf6 {[%clk 0:02:30.6]} 19. Qg3+ {[%clk
0:02:35.7]} 19... Kh8 {[%clk 0:02:30.7]} 20. Bxc7 {[%clk 0:02:27.6]} 20... Rg8
{[%clk 0:02:30.1]} 21. Qf4 {[%clk 0:02:25.8]} 21... Qg6 {[%clk 0:02:28.3]} 22.
g3 {[%clk 0:02:24.2]} 22... f5 {[%clk 0:02:23.9]} 23. d5 {[%clk 0:02:20.7]}
23... Ne7 {[%clk 0:02:19.6]} 24. Rad1 {[%clk 0:02:20.5]} 24... Qg7 {[%clk
0:01:41.5]} 25. Kh1 {[%clk 0:01:45]} 25... Rc8 {[%clk 0:00:52.9]} 26. d6 {[%clk
0:01:41.8]} 26... Ng6 {[%clk 0:00:48.6]} 27. Qxf5 {[%clk 0:01:41.5]} 27... Nh4
{[%clk 0:00:41.2]} 28. Qxe4 {[%clk 0:01:40.9]} 28... Ng6 {[%clk 0:00:39.4]} 29.
d7 {[%clk 0:01:39.6]} 29... Rxc7 {[%clk 0:00:38.1]} 30. d8=Q {[%clk 0:01:39.5]}
30... Rxd8 {[%clk 0:00:35.8]} 31. Rxd8+ {[%clk 0:01:40.4]} 31... Nf8 {[%clk
0:00:36]} 32. Rxf8+ {[%clk 0:01:36.1]} 1-0

[Event "Early-Titled-Tuesday-Blitz-February-20-2024"]
[Site "Chess.com"]
[Date "2024.02.20"]
[Round "8"]
[White "inagreV"]
[Black "AmanteDeMoi"]
[Result "1-0"]
[WhiteElo "2404"]
[BlackElo "2595"]
[TimeControl "180+1"]
[EndTime "9:28:41 PST"]
[Termination "inagreV won by checkmate"]

1. e4 {[%clk 0:03:00.9]} 1... g6 {[%clk 0:02:59.8]} 2. d4 {[%clk 0:03:00.7]}
2... Bg7 {[%clk 0:03:00.1]} 3. Nc3 {[%clk 0:03:00.7]} 3... c6 {[%clk 0:03:00.2]}
4. Nf3 {[%clk 0:03:00]} 4... d5 {[%clk 0:03:00.9]} 5. e5 {[%clk 0:02:59.5]} 5...
h5 {[%clk 0:03:01]} 6. h3 {[%clk 0:02:58.7]} 6... Nh6 {[%clk 0:03:01.9]} 7. Bf4
{[%clk 0:02:52.2]} 7... Nf5 {[%clk 0:03:00.5]} 8. Be2 {[%clk 0:02:50.9]} 8... b5
{[%clk 0:03:00.7]} 9. Qd2 {[%clk 0:02:49.9]} 9... a5 {[%clk 0:02:58.9]} 10. O-O
{[%clk 0:02:48]} 10... Na6 {[%clk 0:02:57.2]} 11. a4 {[%clk 0:02:46]} 11... b4
{[%clk 0:02:56.6]} 12. Nb1 {[%clk 0:02:38]} 12... Nc7 {[%clk 0:02:56.5]} 13. Rc1
{[%clk 0:02:34.8]} 13... e6 {[%clk 0:02:53.1]} 14. c4 {[%clk 0:02:25.6]} 14...
Ba6 {[%clk 0:02:48.9]} 15. b3 {[%clk 0:02:21.2]} 15... c5 {[%clk 0:02:40.1]} 16.
cxd5 {[%clk 0:02:16.8]} 16... Qxd5 {[%clk 0:02:36.3]} 17. Rxc5 {[%clk 0:02:05]}
17... Qd7 {[%clk 0:02:29.3]} 18. Bc4 {[%clk 0:01:56.9]} 18... Bxc4 {[%clk
0:02:27.1]} 19. Rxc4 {[%clk 0:01:57]} 19... Nd5 {[%clk 0:02:26.1]} 20. Qe1
{[%clk 0:01:52.3]} 20... Nxf4 {[%clk 0:02:25.2]} 21. Nbd2 {[%clk 0:01:39.1]}
21... O-O {[%clk 0:02:15.2]} 22. Ne4 {[%clk 0:01:38.3]} 22... Rfc8 {[%clk
0:02:13.8]} 23. Qd2 {[%clk 0:01:34.2]} 23... Nd5 {[%clk 0:02:11.2]} 24. g4
{[%clk 0:01:30.3]} 24... hxg4 {[%clk 0:02:10.7]} 25. hxg4 {[%clk 0:01:31.2]}
25... Nfe7 {[%clk 0:01:58.3]} 26. Kg2 {[%clk 0:01:27]} 26... Nc3 {[%clk
0:01:49.1]} 27. Rxc8+ {[%clk 0:01:24]} 27... Rxc8 {[%clk 0:01:48.4]} 28. Nd6
{[%clk 0:01:24.3]} 28... Rc6 {[%clk 0:01:42.6]} 29. Rh1 {[%clk 0:01:15.9]} 29...
Ned5 {[%clk 0:01:40.8]} 30. Nc4 {[%clk 0:00:59.5]} 30... Qc7 {[%clk 0:01:30.4]}
31. Qg5 {[%clk 0:00:56.7]} 31... Ne2 {[%clk 0:01:26.7]} 32. Qh4 {[%clk
0:00:48.5]} 32... Ndf4+ {[%clk 0:01:26.6]} 33. Kf1 {[%clk 0:00:46.8]} 33... Rxc4
{[%clk 0:01:26.5]} 34. bxc4 {[%clk 0:00:46.9]} 34... Qxc4 {[%clk 0:01:26.6]} 35.
Qd8+ {[%clk 0:00:47.5]} 35... Bf8 {[%clk 0:01:25.4]} 36. Rh8+ {[%clk 0:00:48]}
36... Kxh8 {[%clk 0:01:25.4]} 37. Qxf8+ {[%clk 0:00:48.8]} 37... Kh7 {[%clk
0:01:25.6]} 38. Ng5# {[%clk 0:00:48.1]} 1-0

[Event "Early-Titled-Tuesday-Blitz-February-20-2024"]
[Site "Chess.com"]
[Date "2024.02.20"]
[Round "8"]
[White "ilqar_74"]
[Black "bescmelasti"]
[Result "1-0"]
[WhiteElo "2847"]
[BlackElo "2655"]
[TimeControl "180+1"]
[EndTime "9:28:49 PST"]
[Termination "ilqar_74 won by resignation"]

1. e4 {[%clk 0:02:57.9]} 1... c5 {[%clk 0:02:59.8]} 2. Nf3 {[%clk 0:02:58.2]}
2... e6 {[%clk 0:03:00.7]} 3. d4 {[%clk 0:02:58.8]} 3... cxd4 {[%clk 0:03:01.6]}
4. Nxd4 {[%clk 0:02:59.7]} 4... Nf6 {[%clk 0:03:02.5]} 5. Bd3 {[%clk 0:02:59.8]}
5... Nc6 {[%clk 0:03:02.4]} 6. Nxc6 {[%clk 0:03:00.4]} 6... bxc6 {[%clk
0:03:03.3]} 7. Nc3 {[%clk 0:03:01]} 7... d5 {[%clk 0:03:02.8]} 8. O-O {[%clk
0:03:01.6]} 8... Bd6 {[%clk 0:02:58.3]} 9. Qf3 {[%clk 0:03:01.7]} 9... O-O
{[%clk 0:02:34.3]} 10. Re1 {[%clk 0:02:59.9]} 10... e5 {[%clk 0:02:22.5]} 11.
exd5 {[%clk 0:02:53]} 11... Bg4 {[%clk 0:02:22.6]} 12. Qe3 {[%clk 0:02:38.2]}
12... cxd5 {[%clk 0:02:22.3]} 13. Qg5 {[%clk 0:02:38]} 13... e4 {[%clk
0:02:12.6]} 14. Bf1 {[%clk 0:02:23.8]} 14... h6 {[%clk 0:02:07.5]} 15. Qh4
{[%clk 0:02:22.8]} 15... Be6 {[%clk 0:01:57.4]} 16. Nb5 {[%clk 0:02:01]} 16...
Be5 {[%clk 0:01:35.6]} 17. c3 {[%clk 0:01:58.7]} 17... Ng4 {[%clk 0:01:27.9]}
18. Qxd8 {[%clk 0:01:57.3]} 18... Bxh2+ {[%clk 0:01:12.2]} 19. Kh1 {[%clk
0:01:57]} 19... Rfxd8 {[%clk 0:01:12.6]} 20. g3 {[%clk 0:01:47.8]} 20... h5
{[%clk 0:00:51.7]} 21. Be2 {[%clk 0:01:37.9]} 21... h4 {[%clk 0:00:40.5]} 22.
Bxg4 {[%clk 0:01:36.4]} 22... Bxg4 {[%clk 0:00:39.4]} 23. Kxh2 {[%clk
0:01:36.3]} 23... hxg3+ {[%clk 0:00:36]} 24. Kxg3 {[%clk 0:01:32.9]} 24... Bh5
{[%clk 0:00:27]} 25. Rh1 {[%clk 0:01:31.8]} 25... Bf3 {[%clk 0:00:24.6]} 26. Rh2
{[%clk 0:01:26.2]} 26... Rab8 {[%clk 0:00:24.7]} 27. Nd4 {[%clk 0:01:26.2]}
27... Rb6 {[%clk 0:00:17.3]} 28. Nxf3 {[%clk 0:01:24.4]} 1-0

[Event "Early-Titled-Tuesday-Blitz-February-20-2024"]
[Site "Chess.com"]
[Date "2024.02.20"]
[Round "8"]
[White "traviscottofficial"]
[Black "TokChess"]
[Result "0-1"]
[WhiteElo "2724"]
[BlackElo "2552"]
[TimeControl "180+1"]
[EndTime "9:28:59 PST"]
[Termination "TokChess won on time"]

1. b4 {[%clk 0:02:58.7]} 1... Nf6 {[%clk 0:02:59.1]} 2. Bb2 {[%clk 0:02:58.3]}
2... g6 {[%clk 0:03:00]} 3. Nf3 {[%clk 0:02:57.5]} 3... Bg7 {[%clk 0:03:00.4]}
4. e3 {[%clk 0:02:57.1]} 4... O-O {[%clk 0:03:00.9]} 5. Be2 {[%clk 0:02:57.7]}
5... d6 {[%clk 0:03:01.5]} 6. O-O {[%clk 0:02:58.1]} 6... Nbd7 {[%clk
0:03:02.4]} 7. c4 {[%clk 0:02:57.9]} 7... e5 {[%clk 0:03:02.5]} 8. d4 {[%clk
0:02:56.8]} 8... e4 {[%clk 0:03:02.4]} 9. Nfd2 {[%clk 0:02:57.5]} 9... Re8
{[%clk 0:03:03.3]} 10. Nc3 {[%clk 0:02:57.4]} 10... Nf8 {[%clk 0:03:02.7]} 11.
b5 {[%clk 0:02:57.4]} 11... h5 {[%clk 0:03:02.3]} 12. a4 {[%clk 0:02:57.8]}
12... h4 {[%clk 0:02:59.8]} 13. Qc2 {[%clk 0:02:53.7]} 13... Bf5 {[%clk
0:02:54.2]} 14. Rfe1 {[%clk 0:02:39.7]} 14... h3 {[%clk 0:02:52.6]} 15. g3
{[%clk 0:02:36.6]} 15... N8h7 {[%clk 0:02:52.8]} 16. a5 {[%clk 0:02:32.1]} 16...
a6 {[%clk 0:02:53.4]} 17. bxa6 {[%clk 0:02:27.2]} 17... bxa6 {[%clk 0:02:54.3]}
18. Na2 {[%clk 0:02:20.2]} 18... Ng5 {[%clk 0:02:50.9]} 19. Nb4 {[%clk 0:02:19]}
19... Bg4 {[%clk 0:02:49.6]} 20. d5 {[%clk 0:02:12.5]} 20... Bxe2 {[%clk
0:02:47.7]} 21. Rxe2 {[%clk 0:02:13.4]} 21... Qd7 {[%clk 0:02:42.9]} 22. Ree1
{[%clk 0:02:10.4]} 22... Qf5 {[%clk 0:02:36.2]} 23. f4 {[%clk 0:01:46]} 23...
exf3 {[%clk 0:01:43.5]} 24. Qxf5 {[%clk 0:01:45.5]} 24... gxf5 {[%clk
0:01:44.4]} 25. Nc6 {[%clk 0:01:24.4]} 25... f2+ {[%clk 0:01:39.8]} 26. Kxf2
{[%clk 0:01:24.2]} 26... Ng4+ {[%clk 0:01:40.1]} 27. Kg1 {[%clk 0:01:19.3]}
27... Bxb2 {[%clk 0:01:41]} 28. Rab1 {[%clk 0:01:15]} 28... Bc3 {[%clk
0:01:40.4]} 29. Re2 {[%clk 0:01:14.6]} 29... Bxd2 {[%clk 0:01:39.1]} 0-1

[Event "Early-Titled-Tuesday-Blitz-February-20-2024"]
[Site "Chess.com"]
[Date "2024.02.20"]
[Round "8"]
[White "RobertoJBM"]
[Black "ACollins05"]
[Result "1/2-1/2"]
[WhiteElo "2809"]
[BlackElo "2579"]
[TimeControl "180+1"]
[EndTime "9:29:12 PST"]
[Termination "Game drawn by repetition"]

1. d4 {[%clk 0:03:00.9]} 1... d5 {[%clk 0:02:58.8]} 2. Nf3 {[%clk 0:03:00.7]}
2... Nf6 {[%clk 0:02:58.6]} 3. e3 {[%clk 0:03:00.4]} 3... e6 {[%clk 0:02:58.1]}
4. Bd3 {[%clk 0:03:00.3]} 4... Be7 {[%clk 0:02:57.9]} 5. O-O {[%clk 0:02:59.5]}
5... O-O {[%clk 0:02:58.2]} 6. Nbd2 {[%clk 0:02:59.8]} 6... b6 {[%clk
0:02:56.5]} 7. Qe2 {[%clk 0:02:59.6]} 7... Bb7 {[%clk 0:02:55.8]} 8. e4 {[%clk
0:02:59.6]} 8... dxe4 {[%clk 0:02:55.1]} 9. Nxe4 {[%clk 0:03:00.1]} 9... Nxe4
{[%clk 0:02:48.8]} 10. Bxe4 {[%clk 0:03:00.1]} 10... Bxe4 {[%clk 0:02:49.7]} 11.
Qxe4 {[%clk 0:03:00.6]} 11... Qd5 {[%clk 0:02:50.4]} 12. Qxd5 {[%clk 0:03:00.4]}
12... exd5 {[%clk 0:02:51.3]} 13. Re1 {[%clk 0:03:00.6]} 13... Bf6 {[%clk
0:02:50.1]} 14. Bg5 {[%clk 0:02:59.7]} 14... Nd7 {[%clk 0:02:46.1]} 15. Bxf6
{[%clk 0:02:58.8]} 15... Nxf6 {[%clk 0:02:47]} 16. Re7 {[%clk 0:02:58]} 16...
Rac8 {[%clk 0:02:46.7]} 17. Rae1 {[%clk 0:02:55.7]} 17... Rfe8 {[%clk
0:02:46.2]} 18. Kf1 {[%clk 0:02:50.9]} 18... Kf8 {[%clk 0:02:45.8]} 19. Rxe8+
{[%clk 0:02:42.6]} 19... Rxe8 {[%clk 0:02:38.1]} 20. Ne5 {[%clk 0:02:42.9]}
20... Re6 {[%clk 0:02:33.4]} 21. f3 {[%clk 0:02:38.6]} 21... a5 {[%clk
0:02:27.1]} 22. a4 {[%clk 0:02:37.3]} 22... Ke7 {[%clk 0:02:25.8]} 23. Ke2
{[%clk 0:02:31.4]} 23... Nd7 {[%clk 0:02:22.1]} 24. Kd2 {[%clk 0:02:30.5]} 24...
Nxe5 {[%clk 0:02:18.8]} 25. dxe5 {[%clk 0:02:30.3]} 25... f6 {[%clk 0:02:05.8]}
26. exf6+ {[%clk 0:02:21.5]} 26... Kxf6 {[%clk 0:02:06.7]} 27. Rc1 {[%clk
0:02:08.7]} 27... c5 {[%clk 0:02:01.7]} 28. b3 {[%clk 0:02:00.3]} 28... Re5
{[%clk 0:01:52.7]} 29. g3 {[%clk 0:01:45.5]} 29... Rf5 {[%clk 0:01:44.1]} 30.
Ke3 {[%clk 0:01:42.7]} 30... Re5+ {[%clk 0:01:44.3]} 31. Kf2 {[%clk 0:01:41.2]}
31... d4 {[%clk 0:01:43.7]} 32. Re1 {[%clk 0:01:38.5]} 32... Rd5 {[%clk
0:01:37.2]} 33. Ke2 {[%clk 0:01:35.8]} 33... Rh5 {[%clk 0:01:35.1]} 34. h4
{[%clk 0:01:33.4]} 34... g5 {[%clk 0:01:34.8]} 35. hxg5+ {[%clk 0:01:31.5]}
35... Rxg5 {[%clk 0:01:35.2]} 36. Kf2 {[%clk 0:01:28.6]} 36... Rh5 {[%clk
0:01:34.6]} 37. Kg2 {[%clk 0:01:25.2]} 37... Rd5 {[%clk 0:01:34.6]} 38. Rh1
{[%clk 0:01:22.3]} 38... Kg6 {[%clk 0:01:32.2]} 39. Rd1 {[%clk 0:01:21.2]} 39...
Re5 {[%clk 0:01:29.7]} 40. Kf2 {[%clk 0:01:21.1]} 40... Rh5 {[%clk 0:01:29.6]}
41. Kg2 {[%clk 0:01:19.7]} 41... Re5 {[%clk 0:01:29.6]} 42. Kf2 {[%clk
0:01:09.4]} 42... Rh5 {[%clk 0:01:24.5]} 43. Rg1 {[%clk 0:00:42.6]} 43... Rd5
{[%clk 0:01:18.1]} 44. Rd1 {[%clk 0:00:33.9]} 44... Rh5 {[%clk 0:01:17.8]}
1/2-1/2

[Event "Early-Titled-Tuesday-Blitz-February-20-2024"]
[Site "Chess.com"]
[Date "2024.02.20"]
[Round "8"]
[White "Rud_Makarian"]
[Black "DonkyDonkyDonkey"]
[Result "1-0"]
[WhiteElo "3083"]
[BlackElo "2911"]
[TimeControl "180+1"]
[EndTime "9:29:16 PST"]
[Termination "Rud_Makarian won by resignation"]

1. d4 {[%clk 0:03:00.9]} 1... Nf6 {[%clk 0:03:00.3]} 2. c4 {[%clk 0:03:01.5]}
2... e6 {[%clk 0:03:00.7]} 3. Nf3 {[%clk 0:03:02.1]} 3... d5 {[%clk 0:03:01]} 4.
g3 {[%clk 0:03:02.8]} 4... Be7 {[%clk 0:03:00.6]} 5. Bg2 {[%clk 0:03:03.3]} 5...
O-O {[%clk 0:03:01.4]} 6. O-O {[%clk 0:03:03.5]} 6... a5 {[%clk 0:03:01.9]} 7.
Qc2 {[%clk 0:03:03.3]} 7... c6 {[%clk 0:03:00.4]} 8. Bf4 {[%clk 0:03:03.6]} 8...
b6 {[%clk 0:03:00.4]} 9. Rc1 {[%clk 0:02:55.9]} 9... Ba6 {[%clk 0:02:49.2]} 10.
cxd5 {[%clk 0:02:37.8]} 10... exd5 {[%clk 0:02:45.3]} 11. Bxb8 {[%clk 0:02:21]}
11... Rxb8 {[%clk 0:02:46.2]} 12. Ne5 {[%clk 0:02:21.2]} 12... Bb7 {[%clk
0:02:44.6]} 13. Nxc6 {[%clk 0:02:18.5]} 13... Bxc6 {[%clk 0:02:14.6]} 14. Qxc6
{[%clk 0:02:19.4]} 14... Rc8 {[%clk 0:02:05.9]} 15. Qxc8 {[%clk 0:02:18.7]}
15... Qxc8 {[%clk 0:02:06.8]} 16. Rxc8 {[%clk 0:02:19.2]} 16... Rxc8 {[%clk
0:02:07.7]} 17. Nc3 {[%clk 0:02:19.7]} 17... Bb4 {[%clk 0:02:08.4]} 18. Nxd5
{[%clk 0:02:06.7]} 18... Nxd5 {[%clk 0:02:08.3]} 19. Bxd5 {[%clk 0:02:07.3]}
19... Rc2 {[%clk 0:02:09]} 20. e3 {[%clk 0:02:04.3]} 20... Bd2 {[%clk
0:01:57.2]} 21. Rb1 {[%clk 0:01:57.5]} 21... Kf8 {[%clk 0:01:49.8]} 22. Kf1
{[%clk 0:01:51.1]} 22... Ke7 {[%clk 0:01:46.9]} 23. Bb3 {[%clk 0:01:51.4]} 23...
Rc1+ {[%clk 0:01:46]} 24. Rxc1 {[%clk 0:01:52]} 24... Bxc1 {[%clk 0:01:46.9]}
25. a4 {[%clk 0:01:50.1]} 25... Bxb2 {[%clk 0:01:47]} 26. Bc4 {[%clk 0:01:50.6]}
26... Ba3 {[%clk 0:01:46.1]} 27. Ke2 {[%clk 0:01:51]} 27... Bb4 {[%clk
0:01:46.3]} 28. e4 {[%clk 0:01:49.7]} 28... f6 {[%clk 0:01:43.4]} 29. f4 {[%clk
0:01:49]} 29... h5 {[%clk 0:01:33.4]} 30. e5 {[%clk 0:01:48.6]} 30... h4 {[%clk
0:01:33.4]} 31. gxh4 {[%clk 0:01:43.5]} 31... g6 {[%clk 0:01:17.2]} 32. Kd3
{[%clk 0:01:34.2]} 32... Be1 {[%clk 0:01:15.9]} 33. h5 {[%clk 0:01:29.3]} 33...
gxh5 {[%clk 0:01:16.8]} 34. Ke4 {[%clk 0:01:25.3]} 34... h4 {[%clk 0:01:06.7]}
35. h3 {[%clk 0:01:21.2]} 35... Bg3 {[%clk 0:01:02.5]} 36. d5 {[%clk 0:01:20.9]}
36... fxe5 {[%clk 0:01:01.4]} 37. fxe5 {[%clk 0:01:21.8]} 37... Kd7 {[%clk
0:00:45.6]} 38. Bb5+ {[%clk 0:01:21.2]} 38... Ke7 {[%clk 0:00:46]} 39. d6+
{[%clk 0:01:17.3]} 39... Ke6 {[%clk 0:00:46.9]} 40. Bc4+ {[%clk 0:01:17.7]}
40... Kd7 {[%clk 0:00:47.6]} 41. Kd5 {[%clk 0:01:18]} 41... Kd8 {[%clk
0:00:41.3]} 42. e6 {[%clk 0:01:12.1]} 1-0

[Event "Early-Titled-Tuesday-Blitz-February-20-2024"]
[Site "Chess.com"]
[Date "2024.02.20"]
[Round "8"]
[White "koncheto"]
[Black "ExtremeLearner"]
[Result "0-1"]
[WhiteElo "2426"]
[BlackElo "2584"]
[TimeControl "180+1"]
[EndTime "9:29:18 PST"]
[Termination "ExtremeLearner won by checkmate"]

1. e4 {[%clk 0:03:00.9]} 1... c6 {[%clk 0:02:54.6]} 2. d4 {[%clk 0:03:00.9]}
2... d5 {[%clk 0:02:53.5]} 3. Nc3 {[%clk 0:03:01.3]} 3... dxe4 {[%clk
0:02:50.4]} 4. Nxe4 {[%clk 0:03:02.2]} 4... Nf6 {[%clk 0:02:51]} 5. Nxf6+ {[%clk
0:03:02]} 5... exf6 {[%clk 0:02:51.3]} 6. c3 {[%clk 0:03:02.9]} 6... Bd6 {[%clk
0:02:51.9]} 7. Bd3 {[%clk 0:03:03.2]} 7... O-O {[%clk 0:02:52.6]} 8. Ne2 {[%clk
0:03:03.9]} 8... Re8 {[%clk 0:02:52.6]} 9. O-O {[%clk 0:03:04.2]} 9... Nd7
{[%clk 0:02:52.8]} 10. Ng3 {[%clk 0:03:02.4]} 10... Nf8 {[%clk 0:02:46.5]} 11.
f4 {[%clk 0:03:01.7]} 11... c5 {[%clk 0:02:43]} 12. d5 {[%clk 0:02:39.1]} 12...
g6 {[%clk 0:02:31.2]} 13. Ne4 {[%clk 0:02:15.8]} 13... f5 {[%clk 0:02:27.8]} 14.
Nxd6 {[%clk 0:02:12.8]} 14... Qxd6 {[%clk 0:02:28.7]} 15. c4 {[%clk 0:02:11.5]}
15... Bd7 {[%clk 0:02:12.7]} 16. b3 {[%clk 0:02:08.9]} 16... f6 {[%clk
0:02:07.4]} 17. Bb2 {[%clk 0:02:07.1]} 17... Kf7 {[%clk 0:02:06.8]} 18. Qd2
{[%clk 0:02:02.1]} 18... b6 {[%clk 0:02:02.5]} 19. Qf2 {[%clk 0:01:53.2]} 19...
h5 {[%clk 0:02:01.5]} 20. h3 {[%clk 0:01:44]} 20... Re7 {[%clk 0:01:59.1]} 21.
Qh4 {[%clk 0:01:30.9]} 21... Rae8 {[%clk 0:01:55.4]} 22. g4 {[%clk 0:01:24.6]}
22... Re3 {[%clk 0:01:46.3]} 23. Rad1 {[%clk 0:01:18.9]} 23... fxg4 {[%clk
0:01:42.7]} 24. f5 {[%clk 0:00:51.7]} 24... Qg3+ {[%clk 0:01:12.5]} 25. Qxg3
{[%clk 0:00:47.8]} 25... Rxg3+ {[%clk 0:01:13.4]} 26. Kf2 {[%clk 0:00:48.7]}
26... Rxh3 {[%clk 0:01:03.4]} 27. fxg6+ {[%clk 0:00:47.8]} 27... Nxg6 {[%clk
0:01:03.6]} 28. Kg1 {[%clk 0:00:41.4]} 28... Ne5 {[%clk 0:01:00.9]} 29. Bf5
{[%clk 0:00:41.7]} 29... Bxf5 {[%clk 0:00:55.4]} 30. Rxf5 {[%clk 0:00:41.8]}
30... Nf3+ {[%clk 0:00:56]} 31. Kf2 {[%clk 0:00:37.9]} 31... Rh2+ {[%clk
0:00:51.3]} 32. Kg3 {[%clk 0:00:36.9]} 32... Re4 {[%clk 0:00:51]} 33. d6 {[%clk
0:00:37.8]} 33... h4# {[%clk 0:00:50.1]} 0-1

[Event "Early-Titled-Tuesday-Blitz-February-20-2024"]
[Site "Chess.com"]
[Date "2024.02.20"]
[Round "8"]
[White "DefiantChair"]
[Black "carloseduar100"]
[Result "1-0"]
[WhiteElo "2587"]
[BlackElo "2355"]
[TimeControl "180+1"]
[EndTime "9:29:20 PST"]
[Termination "DefiantChair won on time"]

1. e4 {[%clk 0:02:59.3]} 1... e6 {[%clk 0:02:59.7]} 2. d4 {[%clk 0:02:58.5]}
2... d5 {[%clk 0:02:58.5]} 3. Nd2 {[%clk 0:02:59]} 3... c5 {[%clk 0:02:57.5]} 4.
exd5 {[%clk 0:02:59]} 4... Qxd5 {[%clk 0:02:57.1]} 5. Ngf3 {[%clk 0:02:59.9]}
5... cxd4 {[%clk 0:02:56.8]} 6. Bc4 {[%clk 0:03:00.8]} 6... Qd7 {[%clk
0:02:56.7]} 7. O-O {[%clk 0:03:01.7]} 7... Nc6 {[%clk 0:02:57]} 8. Nb3 {[%clk
0:03:02.4]} 8... Nf6 {[%clk 0:02:56.1]} 9. Nbxd4 {[%clk 0:03:02.9]} 9... Nxd4
{[%clk 0:02:56.2]} 10. Nxd4 {[%clk 0:03:03.8]} 10... a6 {[%clk 0:02:56.5]} 11.
Re1 {[%clk 0:03:03.7]} 11... Qc7 {[%clk 0:02:55.8]} 12. Qe2 {[%clk 0:03:03.3]}
12... Bc5 {[%clk 0:02:21]} 13. Be3 {[%clk 0:02:57.8]} 13... O-O {[%clk
0:02:18.9]} 14. Bd3 {[%clk 0:02:55.3]} 14... e5 {[%clk 0:02:15.5]} 15. Nb3
{[%clk 0:02:55.3]} 15... Bxe3 {[%clk 0:02:15.4]} 16. Qxe3 {[%clk 0:02:56.1]}
16... Re8 {[%clk 0:02:14.5]} 17. Qg3 {[%clk 0:02:55.8]} 17... b5 {[%clk
0:02:04.4]} 18. a4 {[%clk 0:02:53.5]} 18... b4 {[%clk 0:01:57.7]} 19. a5 {[%clk
0:02:53.5]} 19... Bb7 {[%clk 0:01:56.8]} 20. Rad1 {[%clk 0:02:45.5]} 20... Rac8
{[%clk 0:01:56.5]} 21. f3 {[%clk 0:02:44.1]} 21... h6 {[%clk 0:01:53.5]} 22. Re2
{[%clk 0:02:41.8]} 22... e4 {[%clk 0:01:21.1]} 23. Qxc7 {[%clk 0:02:39.9]} 23...
Rxc7 {[%clk 0:01:21.4]} 24. Rde1 {[%clk 0:02:28.6]} 24... Rce7 {[%clk
0:00:32.9]} 25. Bc4 {[%clk 0:02:26.6]} 25... Kf8 {[%clk 0:00:25.7]} 26. Nc5
{[%clk 0:02:22.3]} 26... Bd5 {[%clk 0:00:18.4]} 27. Bxd5 {[%clk 0:02:13.8]}
27... Nxd5 {[%clk 0:00:18.6]} 28. Rxe4 {[%clk 0:02:13.9]} 28... Rxe4 {[%clk
0:00:18.1]} 29. Rxe4 {[%clk 0:02:13.6]} 29... Rxe4 {[%clk 0:00:17.9]} 30. fxe4
{[%clk 0:02:13.5]} 30... Nc7 {[%clk 0:00:16.5]} 31. Kf2 {[%clk 0:02:12.6]} 31...
Ke7 {[%clk 0:00:16.7]} 32. Ke3 {[%clk 0:02:12.9]} 32... Kd6 {[%clk 0:00:16.6]}
33. Nd3 {[%clk 0:02:12.9]} 33... Kc6 {[%clk 0:00:11.7]} 34. Nxb4+ {[%clk
0:02:13.1]} 34... Kb5 {[%clk 0:00:12.6]} 35. Nd5 {[%clk 0:02:13.4]} 35... Ne6
{[%clk 0:00:13]} 36. b4 {[%clk 0:02:11.6]} 36... Kc4 {[%clk 0:00:10.7]} 37. c3
{[%clk 0:02:11.2]} 37... g6 {[%clk 0:00:09.4]} 38. h4 {[%clk 0:02:10.5]} 38...
f5 {[%clk 0:00:08.8]} 39. Nf4 {[%clk 0:01:57.4]} 39... Nf8 {[%clk 0:00:03.4]}
40. exf5 {[%clk 0:01:55.6]} 40... gxf5 {[%clk 0:00:04.3]} 41. Ne2 {[%clk
0:01:55.3]} 41... Ne6 {[%clk 0:00:04]} 42. Kf3 {[%clk 0:01:55.3]} 1-0